lending/lending_fUSD_20250920
["ID","MTS","AMOUNT","RATE_DAILY","PERIOD"]
[386592486,1758411153126,-269.15774152,0.00024656,2]
[386592487,1758411153137,-400.0,0.00024656,2]
[386592488,1758411153147,-400.0,0.00024656,2]
[386592489,1758411153156,-1784.99,0.00024656,2]
[386592490,1758411153166,-400.0,0.00024656,2]
[386592491,1758411153176,-505.14,0.00024656,2]
[386592492,1758411153186,-941.59,0.00024656,2]
[386592493,1758411153196,-465.27,0.00024656,2]
[386592494,1758411153206,-400.0,0.00024656,2]
[386592495,1758411153219,-488.79,0.00024656,2]
[386592496,1758411153228,-663.94,0.00024656,2]
[386592497,1758411153237,-400.0,0.00024656,2]
[386592498,1758411153247,-400.0,0.00024656,2]
[386592499,1758411153258,-417.5,0.00024656,2]
[386592500,1758411153267,-663.8,0.00024656,2]
[386592501,1758411153278,-472.35,0.00024656,2]
[386592502,1758411153288,-400.0,0.00024656,2]
[386592503,1758411153298,-400.0,0.00024656,2]
[386592504,1758411153308,-400.0,0.00024656,2]
[386592505,1758411153317,-8640.32,0.00024656,2]
[386592506,1758411153327,-8640.32,0.00024656,2]
[386592507,1758411153336,-8640.32,0.00024656,2]
[386592508,1758411153345,-400.0,0.00024656,2]
[386592509,1758411153355,-8640.32,0.00024656,2]
[386592510,1758411153365,-1914.66,0.00024656,2]
[386592511,1758411153375,-400.0,0.00024656,2]
[386592512,1758411153386,-2368.61,0.00024656,2]
[386592513,1758411153395,-1957.56,0.00024656,2]
[386592514,1758411153405,-400.0,0.00024656,2]
[386592515,1758411153416,-1142.17,0.00024656,2]
[386592516,1758411153426,-16865.07,0.00024656,2]
[386592517,1758411153435,-400.0,0.00024656,2]
[386592518,1758411153445,-848.28,0.00024656,2]
[386592519,1758411153454,-979.23,0.00024656,2]
[386592520,1758411153464,-969.74,0.00024656,2]
[386592521,1758411153474,-400.0,0.00024656,2]
[386592522,1758411153484,-9878.67,0.00024656,2]
[386592523,1758411153494,-400.0,0.00024656,2]
[386592524,1758411153504,-1907.6,0.00024656,2]
[386592525,1758411153514,-400.0,0.00024656,2]
[386592526,1758411153524,-400.0,0.00024656,2]
[386592527,1758411153533,-984.55,0.00024656,2]
[386592528,1758411153543,-400.0,0.00024656,2]
[386592529,1758411153553,-1625.56,0.00024656,2]
[386592530,1758411153563,-7127.75,0.00024656,2]
[386592531,1758411153572,-1337.99,0.00024656,2]
[386592532,1758411153582,-1377.08,0.00024656,2]
[386592533,1758411153592,-400.0,0.00024656,2]
[386592534,1758411153602,-5798.24,0.00024656,2]
[386592535,1758411153612,-400.0,0.00024656,2]
[386592536,1758411153622,-518.98,0.00024656,2]
[386592537,1758411153633,-400.0,0.00024656,2]
[386592538,1758411153643,-400.0,0.00024656,2]
[386592539,1758411153653,-400.0,0.00024656,2]
[386592540,1758411153662,-913.18,0.00024656,2]
[386592541,1758411153672,-913.18,0.00024656,2]
[386592542,1758411153682,-913.18,0.00024656,2]
[386592543,1758411153692,-913.18,0.00024656,2]
[386592544,1758411153702,-913.18,0.00024656,2]
[386592545,1758411153712,-913.18,0.00024656,2]
[386592546,1758411153722,-400.0,0.00024656,2]
[386592547,1758411153732,-913.18,0.00024656,2]
[386592548,1758411153741,-400.0,0.00024656,2]
[386592549,1758411153751,-1798.84,0.00024656,2]
[386592550,1758411153762,-1020.3,0.00024656,2]
[386592551,1758411153772,-3063.29,0.00024656,2]
[386592552,1758411153782,-400.0,0.00024656,2]
[386592553,1758411153792,-516.0,0.00024656,2]
[386592554,1758411153801,-3515.75,0.00024656,2]
[386592555,1758411153812,-400.0,0.00024656,2]
[386592556,1758411153822,-1396.64,0.00024656,2]
[386592557,1758411153832,-400.0,0.00024656,2]
[386592558,1758411153842,-414.27,0.00024656,2]
[386592559,1758411153852,-400.0,0.00024656,2]
[386592560,1758411153862,-2824.3,0.00024656,2]
[386592561,1758411153872,-1003.21,0.00024656,2]
[386592562,1758411153882,-400.0,0.00024656,2]
[386592563,1758411153892,-400.0,0.00024656,2]
[386592564,1758411153903,-400.0,0.00024656,2]
[386592565,1758411153913,-670.93,0.00024656,2]
[386592566,1758411153922,-400.0,0.00024656,2]
[386592567,1758411153932,-400.0,0.00024656,2]
[386592568,1758411153942,-1643.08,0.00024656,2]
[386592569,1758411153951,-800.83,0.00024656,2]
[386592570,1758411153961,-2094.93,0.00024656,2]
[386592571,1758411153971,-400.0,0.00024656,2]
[386592572,1758411153982,-546.38,0.00024656,2]
[386592573,1758411153993,-801.69,0.00024656,2]
[386592574,1758411154003,-400.0,0.00024656,2]
[386592575,1758411154013,-402.36,0.00024656,2]
[386592576,1758411154023,-720.87,0.00024656,2]
[386592577,1758411154032,-990.27,0.00024656,2]
[386592578,1758411154042,-400.0,0.00024656,2]
[386592579,1758411154052,-400.0,0.00024656,2]
[386592580,1758411154062,-555.99,0.00024656,2]
[386592581,1758411154072,-2200.43,0.00024656,2]
[386592582,1758411154081,-427.25,0.00024656,2]
[386592583,1758411154092,-1631.7,0.00024656,2]
[386592584,1758411154102,-400.0,0.00024656,2]
[386592585,1758411154111,-436.66,0.00024656,2]
[386592586,1758411154122,-400.0,0.00024656,2]
[386592587,1758411154132,-2145.4,0.00024656,2]
[386592588,1758411154142,-400.0,0.00024656,2]
[386592589,1758411154152,-4525.56,0.00024656,2]
[386592590,1758411154162,-443.92,0.00024656,2]
[386592591,1758411154171,-400.0,0.00024656,2]
[386592592,1758411154181,-1703.48,0.00024656,2]
[386592593,1758411154190,-657.63,0.00024656,2]
[386592594,1758411154200,-400.0,0.00024656,2]
[386592595,1758411154210,-400.0,0.00024656,2]
[386592596,1758411154220,-400.0,0.00024656,2]
[386592597,1758411154230,-1571.33,0.00024656,2]
[386592598,1758411154240,-400.0,0.00024656,2]
[386592599,1758411154250,-4961.42,0.00024656,2]
[386592600,1758411154260,-400.0,0.00024656,2]
[386592601,1758411154269,-400.0,0.00024656,2]
[386592602,1758411154279,-4401.65,0.00024656,2]
[386592603,1758411154288,-1820.47,0.00024656,2]
[386592604,1758411154298,-400.0,0.00024656,2]
[386592605,1758411154307,-400.0,0.00024656,2]
[386592606,1758411154318,-400.0,0.00024656,2]
[386592607,1758411154328,-1779.51,0.00024656,2]
[386592608,1758411154338,-1779.51,0.00024656,2]
[386592609,1758411154348,-463.54,0.00024656,2]
[386592610,1758411154357,-1779.51,0.00024656,2]
[386592611,1758411154367,-1415.22,0.00024656,2]
[386592612,1758411154377,-1779.51,0.00024656,2]
[386592613,1758411154387,-400.0,0.00024656,2]
[386592614,1758411154396,-532.24,0.00024656,2]
[386592615,1758411154406,-1779.51,0.00024656,2]
[386592616,1758411154415,-919.96,0.00024656,2]
[386592617,1758411154425,-1866.94,0.00024656,2]
[386592618,1758411154435,-635.2,0.00024656,2]
[386592619,1758411154445,-400.0,0.00024656,2]
[386592620,1758411154454,-11649.72,0.00024656,2]
[386592621,1758411154464,-400.0,0.00024656,2]
[386592622,1758411154473,-400.0,0.00024656,2]
[386592623,1758411154484,-1252.64,0.00024656,2]
[386592624,1758411154494,-400.0,0.00024656,2]
[386592625,1758411154503,-12330.36,0.00024656,2]
[386592626,1758411154764,-1030.86,0.00024656,2]
[386592627,1758411154774,-400.0,0.00024656,2]
[386592628,1758411154783,-400.0,0.00024656,2]
[386592629,1758411154793,-1327.89,0.00024656,2]
[386592630,1758411154803,-2048.02,0.00024656,2]
[386592631,1758411154814,-400.0,0.00024656,2]
[386592632,1758411154824,-400.0,0.00024656,2]
[386592633,1758411154835,-400.0,0.00024656,2]
[386592634,1758411154848,-417.15,0.00024656,2]
[386592635,1758411154858,-4766.73,0.00024656,2]
[386592636,1758411154869,-400.0,0.00024656,2]
[386592637,1758411154879,-400.0,0.00024656,2]
[386592638,1758411154889,-400.0,0.00024656,2]
[386592639,1758411154899,-963.01,0.00024656,2]
[386592640,1758411154910,-400.0,0.00024656,2]
[386592641,1758411154921,-400.0,0.00024656,2]
[386592642,1758411154931,-2421.52,0.00024656,2]
[386592643,1758411154942,-400.0,0.00024656,2]
[386592644,1758411154952,-1022.23,0.00024656,2]
[386592645,1758411154962,-400.0,0.00024656,2]
[386592646,1758411154972,-1022.23,0.00024656,2]
[386592647,1758411154982,-1022.23,0.00024656,2]
[386592648,1758411154992,-1022.23,0.00024656,2]
[386592649,1758411155002,-1362.4,0.00024656,2]
[386592650,1758411155013,-400.0,0.00024656,2]
[386592651,1758411155023,-400.0,0.00024656,2]
[386592652,1758411155034,-8461.73,0.00024656,2]
[386592653,1758411155046,-400.0,0.00024656,2]
[386592654,1758411155058,-400.0,0.00024656,2]
[386592655,1758411155068,-400.0,0.00024656,2]
[386592656,1758411155078,-433.48,0.00024656,2]
[386592657,1758411155090,-661.84,0.00024656,2]
[386592658,1758411155099,-437.3169042,0.00024656,2]
[386592659,1758411155110,-636.33,0.00024656,2]
[386592660,1758411155122,-400.0,0.00024656,2]
[386592661,1758411155132,-703.77,0.00024656,2]
[386592662,1758411155142,-4239.95,0.00024656,2]
[386592663,1758411155151,-1515.77,0.00024656,2]
[386592664,1758411155160,-562.78,0.00024656,2]
[386592665,1758411155170,-4248.55,0.00024656,2]
[386592666,1758411155179,-408.02,0.00024656,2]
[386592667,1758411155190,-400.0,0.00024656,2]
[386592668,1758411155200,-400.0,0.00024656,2]
[386592669,1758411155211,-2340.9,0.00024656,2]
[386592670,1758411155223,-1828.95,0.00024656,2]
[386592671,1758411155233,-1828.95,0.00024656,2]
[386592672,1758411155243,-1828.95,0.00024656,2]
[386592673,1758411155252,-1828.95,0.00024656,2]
[386592674,1758411155262,-1828.95,0.00024656,2]
[386592675,1758411155272,-524.3,0.00024656,2]
[386592676,1758411155282,-1828.95,0.00024656,2]
[386592677,1758411155292,-1828.95,0.00024656,2]
[386592678,1758411155302,-1828.95,0.00024656,2]
[386592679,1758411155312,-1828.95,0.00024656,2]
[386592680,1758411155321,-400.0,0.00024656,2]
[386592681,1758411155331,-400.0,0.00024656,2]
[386592682,1758411155341,-419.36,0.00024656,2]
[386592683,1758411155351,-5567.45,0.00024656,2]
[386592684,1758411155360,-1569.17,0.00024656,2]
[386592685,1758411155370,-1826.73,0.00024656,2]
[386592686,1758411155379,-905.3,0.00024656,2]
[386592687,1758411155389,-400.0,0.00024656,2]
[386592688,1758411155398,-400.0,0.00024656,2]
[386592689,1758411155408,-455.24,0.00024656,2]
[386592690,1758411155417,-400.0,0.00024656,2]
[386592691,1758411155427,-400.0,0.00024656,2]
[386592692,1758411155437,-400.0,0.00024656,2]
[386592693,1758411155446,-400.0,0.00024656,2]
[386592694,1758411155455,-400.0,0.00024656,2]
[386592695,1758411155464,-2788.38,0.00024656,2]
[386592696,1758411155474,-400.0,0.00024656,2]
[386592697,1758411155484,-400.0,0.00024656,2]
[386592698,1758411155494,-400.0,0.00024656,2]
[386592699,1758411155503,-183.9,0.00024656,2]
[386592700,1758411155513,-400.0,0.00024656,2]
[386592701,1758411155523,-400.0,0.00024656,2]
[386592702,1758411155532,-400.0,0.00024656,2]
[386592703,1758411155542,-412.72,0.00024656,2]
[386592704,1758411155552,-1627.87,0.00024656,2]
[386592705,1758411155562,-196.73543015,0.00024656,2]
[386592706,1758411155571,-400.0,0.00024656,2]
[386592707,1758411155581,-1700.95,0.00024656,2]
[386592708,1758411155592,-1806.06,0.00024656,2]
[386592709,1758411155602,-763.28,0.00024656,2]
[386592710,1758411155612,-152.98,0.00024657,2]
[386592711,1758411155621,-533.39,0.00024657,2]
[386592712,1758411155631,-152.83,0.00024657,2]
[386592713,1758411155640,-405.95,0.00024657,2]
[386592714,1758411155650,-400.0,0.00024657,2]
[386592715,1758411155659,-400.0,0.00024657,2]
[386592716,1758411155668,-499.4,0.00024657,2]
[386592717,1758411155679,-400.0,0.00024657,2]
[386592718,1758411155687,-400.0,0.00024657,2]
[386592719,1758411155697,-400.0,0.00024657,2]
[386592720,1758411155706,-1221.05,0.00024657,2]
[386592721,1758411155715,-160.0,0.00024657,7]
[386592722,1758411155725,-3019.62027748,0.00024657,7]
[386592723,1758411155735,-412.83,0.00024657,2]
[386592724,1758411155744,-456.39,0.00024657,2]
[386592725,1758411155754,-23567.9110377,0.00024657,2]
[386592726,1758411155763,-422.18,0.00024657,2]
[386592727,1758411155773,-443.19248284,0.00024657,2]
[386592728,1758411155782,-735.5,0.00024657,2]
[386592729,1758411155792,-400.0,0.00024657,2]
[386592730,1758411155801,-973.78,0.00024657,2]
[386592731,1758411155811,-400.0,0.00024657,2]
[386592732,1758411155820,-780.68,0.00024657,2]
[386592733,1758411155829,-460.22,0.00024657,2]
[386592734,1758411155840,-400.0,0.00024657,2]
[386592735,1758411155849,-445.21,0.00024657,2]
[386592736,1758411155859,-783.53,0.00024657,2]
[386592737,1758411155868,-400.0,0.00024657,2]
[386592738,1758411155877,-1017.9,0.00024657,2]
[386592739,1758411155887,-400.0,0.00024657,2]
[386592740,1758411155897,-400.0,0.00024657,2]
[386592741,1758411155906,-400.0,0.00024657,2]
[386592742,1758411155916,-400.0,0.00024657,2]
[386592743,1758411155926,-400.0,0.00024657,2]
[386592744,1758411155936,-400.0,0.00024657,2]
[386592745,1758411155947,-400.0,0.00024657,2]
[386592746,1758411155956,-400.0,0.00024657,2]
[386592747,1758411155966,-400.0,0.00024657,2]
[386592748,1758411155975,-400.0,0.00024657,2]
[386592749,1758411155985,-400.0,0.00024657,2]
[386592750,1758411155995,-905.84,0.00024657,2]
[386592751,1758411156005,-400.0,0.00024657,2]
[386592752,1758411156015,-400.0,0.00024657,2]
[386592753,1758411156024,-400.0,0.00024657,2]
[386592754,1758411156034,-516.97,0.00024657,2]
[386592755,1758411156043,-917.42,0.00024657,2]
[386592756,1758411156054,-400.0,0.00024657,2]
[386592757,1758411156063,-416.67,0.00024657,2]
[386592758,1758411156074,-1155.51,0.00024657,2]
[386592759,1758411156084,-400.0,0.00024657,2]
[386592760,1758411156094,-400.0,0.00024657,2]
[386592761,1758411156103,-400.0,0.00024657,2]
[386592762,1758411156112,-427.62,0.00024657,2]
[386592763,1758411156121,-466.23,0.00024657,2]
[386592764,1758411156132,-400.0,0.00024657,2]
[386592765,1758411156141,-417.39,0.00024657,2]
[386592766,1758411156151,-400.0,0.00024657,2]
[386592767,1758411156160,-470.39,0.00024657,2]
[386592768,1758411156171,-400.0,0.00024657,2]
[386592769,1758411156181,-400.0,0.00024657,2]
[386592770,1758411156191,-400.0,0.00024657,2]
[386592771,1758411156200,-400.0,0.00024657,2]
[386592772,1758411156210,-400.0,0.00024657,2]
[386592773,1758411156220,-753.02,0.00024657,2]
[386592774,1758411156230,-1423.3,0.00024657,2]
[386592775,1758411156240,-1080.62,0.00024657,2]
[386592776,1758411156253,-25010.4,0.00024657,2]
[386592777,1758411156263,-1932.87,0.00024657,2]
[386592778,1758411156273,-430.06,0.00024657,2]
[386592779,1758411156283,-1865.61,0.00024657,2]
[386592780,1758411156292,-2667.35,0.00024657,2]
[386592781,1758411156303,-151.0,0.00024657,2]
[386592782,1758411156312,-1922.03,0.00024657,2]
[386592783,1758411156322,-3013.62,0.00024657,2]
[386592784,1758411156332,-2227.82,0.00024657,2]
[386592785,1758411156344,-300.0,0.00024657,2]
[386592786,1758411156354,-300.0,0.00024657,2]
[386592787,1758411156364,-300.0,0.00024657,2]
[386592788,1758411156376,-300.0,0.00024657,2]
[386592789,1758411156386,-300.0,0.00024657,2]
[386592790,1758411156397,-300.0,0.00024657,2]
[386592791,1758411156407,-300.0,0.00024657,2]
[386592792,1758411156419,-300.0,0.00024657,2]
[386592793,1758411156429,-300.0,0.00024657,2]
[386592794,1758411156443,-400.0,0.00024657,2]
[386592795,1758411156454,-1911.57,0.00024657,2]
[386592796,1758411156465,-1326.64,0.00024657,2]
[386592797,1758411156476,-1598.81,0.00024657,2]
[386592798,1758411156487,-1006.97,0.00024657,2]
[386592799,1758411156497,-2287.61,0.00024657,2]
[386592800,1758411156507,-1946.76,0.00024657,2]
[386592801,1758411156520,-2942.69,0.00024657,2]
[386592802,1758411156530,-662.64,0.00024657,2]
[386592803,1758411156539,-635.03,0.00024657,2]
[386592804,1758411156549,-510.31,0.00024657,2]
[386592805,1758411156558,-400.0,0.00024657,2]
[386592806,1758411156573,-2086.33,0.00024657,2]
[386592807,1758411156583,-4322.37,0.00024657,2]
[386592808,1758411156594,-1428.44,0.00024657,2]
[386592809,1758411156604,-1503.82,0.00024657,2]
[386592810,1758411156614,-1087.06,0.00024657,2]
[386592811,1758411156625,-1799.59,0.00024657,2]
[386592812,1758411156636,-517.51,0.00024657,2]
[386592813,1758411156647,-1269.39,0.00024657,2]
[386592814,1758411156658,-400.0,0.00024657,2]
[386592815,1758411156668,-810.42,0.00024657,2]
[386592816,1758411156679,-400.0,0.00024657,2]
[386592817,1758411156689,-5158.25,0.00024657,2]
[386592818,1758411156699,-1000.0,0.00024657,7]
[386592819,1758411156710,-1000.0,0.00024657,7]
[386592820,1758411156719,-842.58,0.00024657,2]
[386592821,1758411156729,-1000.0,0.00024657,7]
[386592822,1758411156739,-1000.0,0.00024657,7]
[386592823,1758411156749,-1000.0,0.00024657,7]
[386592824,1758411156760,-1000.0,0.00024657,7]
[386592825,1758411156770,-1000.0,0.00024657,7]
[386592826,1758411156780,-1000.0,0.00024657,7]
[386592827,1758411156790,-1000.0,0.00024657,7]
[386592828,1758411156800,-1000.0,0.00024657,7]
[386592829,1758411156810,-1153.91,0.00024657,2]
[386592830,1758411156820,-646.59,0.00024657,2]
[386592831,1758411156831,-400.0,0.00024657,2]
[386592832,1758411156841,-1052.06,0.00024657,2]
[386592833,1758411156852,-1366.55,0.00024657,2]
[386592834,1758411156861,-400.0,0.00024657,2]
[386592835,1758411156872,-697.33,0.00024657,2]
[386592836,1758411156882,-400.0,0.00024657,2]
[386592837,1758411156892,-404.27,0.00024657,2]
[386592838,1758411156903,-400.0,0.00024657,2]
[386592839,1758411156913,-542.58,0.00024657,2]
[386592840,1758411156924,-154.0,0.00024658,2]
[386592841,1758411156934,-154.23895622,0.00024658,2]
[386592842,1758411156944,-153.65524713,0.00024658,2]
[386592843,1758411156956,-154.0,0.00024658,2]
[386592844,1758411156966,-152.68724886,0.00024658,2]
[386592845,1758411156978,-1000.0,0.00024658,2]
[386592846,1758411156988,-183.860866,0.00024658,7]
[386592847,1758411157001,-183.860866,0.00024658,7]
[386592848,1758411157011,-183.860866,0.00024658,7]
[386592849,1758411157022,-183.860866,0.00024658,7]
[386592850,1758411157033,-183.860866,0.00024658,7]
[386592851,1758411157045,-183.860866,0.00024658,7]
[386592852,1758411157058,-183.860866,0.00024658,7]
[386592853,1758411157069,-183.860866,0.00024658,7]
[386592854,1758411157081,-183.860866,0.00024658,7]
[386592855,1758411157091,-183.860866,0.00024658,7]
[386592856,1758411157100,-183.860866,0.00024658,7]
[386592857,1758411157112,-183.860866,0.00024658,7]
[386592858,1758411157123,-183.860866,0.00024658,7]
[386592859,1758411157135,-183.860866,0.00024658,7]
[386592860,1758411157145,-183.860866,0.00024658,7]
[386592861,1758411157155,-183.860866,0.00024658,7]
[386592862,1758411157165,-183.860866,0.00024658,7]
[386592863,1758411157175,-183.860866,0.00024658,7]
[386592864,1758411157187,-183.860866,0.00024658,7]
[386592865,1758411157196,-183.860864,0.00024658,7]
[386592866,1758411157207,-349.196649,0.00024658,7]
[386592867,1758411157220,-349.196649,0.00024658,7]
[386592868,1758411157230,-349.196649,0.00024658,7]
[386592869,1758411157239,-349.196649,0.00024658,7]
[386592870,1758411157249,-349.196649,0.00024658,7]
[386592871,1758411157260,-349.196649,0.00024658,7]
[386592872,1758411157270,-349.196649,0.00024658,7]
[386592873,1758411157280,-349.196649,0.00024658,7]
[386592874,1758411157291,-349.196649,0.00024658,7]
[386592875,1758411157451,-349.196649,0.00024658,7]
[386592876,1758411157461,-349.196649,0.00024658,7]
[386592877,1758411157471,-349.196649,0.00024658,7]
[386592878,1758411157480,-349.196649,0.00024658,7]
[386592879,1758411157490,-349.196649,0.00024658,7]
[386592880,1758411157499,-349.196649,0.00024658,7]
[386592881,1758411157509,-349.196649,0.00024658,7]
[386592882,1758411157519,-349.196649,0.00024658,7]
[386592883,1758411157531,-349.196649,0.00024658,7]
[386592884,1758411157540,-349.196649,0.00024658,7]
[386592885,1758411157550,-349.196646,0.00024658,7]
[386592886,1758411157559,-1388.06,0.00024658,2]
[386592887,1758411157569,-1000.0,0.00024658,3]
[386592888,1758411157578,-1000.0,0.00024658,3]
[386592889,1758411157587,-1000.0,0.00024658,3]
[386592890,1758411157597,-1000.0,0.00024658,3]
[386592891,1758411157606,-1000.0,0.00024658,3]
[386592892,1758411157618,-1000.0,0.00024658,3]
[386592893,1758411157630,-1000.0,0.00024658,3]
[386592894,1758411157639,-1000.0,0.00024658,3]
[386592895,1758411157650,-1000.0,0.00024658,3]
[386592896,1758411157660,-1000.0,0.00024658,3]
[386592897,1758411157669,-1000.0,0.00024658,3]
[386592898,1758411157679,-1000.0,0.00024658,3]
[386592899,1758411157688,-1000.0,0.00024658,3]
[386592900,1758411157696,-1000.0,0.00024658,3]
[386592901,1758411157707,-1000.0,0.00024658,3]
[386592902,1758411157716,-1000.0,0.00024658,3]
[386592903,1758411157726,-1000.0,0.00024658,3]
[386592904,1758411157736,-1000.0,0.00024658,3]
[386592905,1758411157745,-1000.0,0.00024658,3]
[386592906,1758411157754,-1000.0,0.00024658,3]
[386592907,1758411157763,-1000.0,0.00024658,3]
[386592908,1758411157772,-1000.0,0.00024658,3]
[386592909,1758411157782,-1000.0,0.00024658,3]
[386592910,1758411157791,-1000.0,0.00024658,3]
[386592911,1758411157800,-1000.0,0.00024658,3]
[386592912,1758411157810,-1000.0,0.00024658,3]
[386592913,1758411157820,-1000.0,0.00024658,3]
[386592914,1758411157830,-1000.0,0.00024658,3]
[386592915,1758411157840,-1000.0,0.00024658,3]
[386592916,1758411157849,-1000.0,0.00024658,3]
[386592917,1758411157859,-1000.0,0.00024658,3]
[386592918,1758411157870,-1000.0,0.00024658,3]
[386592919,1758411157879,-1000.0,0.00024658,3]
[386592920,1758411157889,-1000.0,0.00024658,3]
[386592921,1758411157899,-1000.0,0.00024658,3]
[386592922,1758411157908,-1000.0,0.00024658,3]
[386592923,1758411157918,-1000.0,0.00024658,3]
[386592924,1758411157928,-1000.0,0.00024658,3]
[386592925,1758411157938,-151.0,0.00024658,7]
[386592926,1758411157948,-151.0,0.00024658,7]
[386592927,1758411157958,-151.0,0.00024658,7]
[386592928,1758411157967,-151.0,0.00024658,7]
[386592929,1758411157976,-245.0,0.00024658,7]
[386592930,1758411157987,-1000.0,0.00024658,3]
[386592931,1758411157996,-1000.0,0.00024658,3]
[386592932,1758411158007,-1000.0,0.00024658,3]
[386592933,1758411158017,-1000.0,0.00024658,3]
[386592934,1758411158027,-1000.0,0.00024658,3]
[386592935,1758411158037,-673.0,0.00024658,3]
[386592936,1758411158047,-500.0,0.00024658,2]
[386592937,1758411158057,-500.0,0.00024658,2]
[386592938,1758411158067,-2306.0,0.00024658,2]
[386592939,1758411158077,-520.0,0.00024658,2]
[386592940,1758411158087,-540.0,0.00024658,2]
[386592941,1758411158097,-757.0,0.00024658,2]
[386592942,1758411158106,-500.0,0.00024658,2]
[386592943,1758411158116,-724.0,0.00024658,2]
[386592944,1758411158126,-500.0,0.00024658,2]
[386592945,1758411158135,-489.0,0.00024658,2]
[386592946,1758411158145,-160.10175537,0.00024673,2]
[386592947,1758411158154,-318.02025898,0.00024673,2]
[386592948,1758411158163,-159.92748551,0.00024673,2]
[386592949,1758411158173,-500.0,0.00024673,2]
[386592950,1758411158183,-500.0,0.00024673,2]
[386592951,1758411158192,-500.0,0.00024673,2]
[386592952,1758411158201,-500.0,0.00024673,2]
[386592953,1758411158211,-500.0,0.00024673,2]
[386592954,1758411158220,-500.0,0.00024673,2]
[386592955,1758411158229,-500.0,0.00024673,2]
[386592956,1758411158239,-500.0,0.00024673,2]
[386592957,1758411158248,-203.13192354,0.00024673,2]
[386592958,1758411158258,-171.31070486,0.00024673,2]
[386592959,1758411158267,-500.0,0.00024673,2]
[386592960,1758411158276,-500.0,0.00024673,2]
[386592961,1758411158286,-500.0,0.00024673,2]
[386592962,1758411158296,-500.0,0.00024673,2]
[386592963,1758411158307,-500.0,0.00024673,2]
[386592964,1758411158317,-500.0,0.00024673,2]
[386592965,1758411158327,-500.0,0.00024673,2]
[386592966,1758411158336,-500.63852745,0.00024673,2]
[386592967,1758411158346,-150.0,0.00024673,2]
[386592968,1758411158356,-500.0,0.00024676,2]
[386592969,1758411158365,-500.0,0.00024676,2]
[386592970,1758411158374,-500.0,0.00024676,2]
[386592971,1758411158383,-500.0,0.00024676,2]
[386592972,1758411158393,-500.0,0.00024676,2]
[386592973,1758411158402,-500.0,0.00024676,2]
[386592974,1758411158411,-500.0,0.00024676,2]
[386592975,1758411158420,-500.0,0.00024676,2]
[386592976,1758411158431,-500.0,0.00024676,2]
[386592977,1758411158440,-500.0,0.00024676,2]
[386592978,1758411158450,-500.0,0.00024676,2]
[386592979,1758411158460,-500.0,0.00024676,2]
[386592980,1758411158470,-500.0,0.00024676,2]
[386592981,1758411158479,-500.0,0.00024676,2]
[386592982,1758411158488,-500.0,0.00024676,2]
[386592983,1758411158497,-500.0,0.00024676,2]
[386592984,1758411158507,-500.0,0.00024676,2]
[386592985,1758411158516,-500.0,0.00024676,2]